bitfinex-derivatives/quotes_SOLF0:USTF0_20250818
["timestamp","ask_amount","ask_price","bid_price","bid_amount"]
[1755560903705,3.02,182.85,182.75,5.4692]
[1755560903993,3.02,182.83,182.75,5.4692]
[1755560904186,3.02,182.81,182.75,5.4692]
[1755560904582,3.02,182.85,182.76,0.04]
[1755560904788,3.97569814,182.84,182.77,4.82539774]
[1755560904998,3.97569814,182.83,182.77,4.82539774]
[1755560905196,6.99569814,182.82,182.78,0.04]
[1755560905497,3.02,182.82,182.78,0.04]
[1755560905801,3.02,182.85,182.77,4.82539774]
[1755560905999,3.02,182.83,182.76,4.82539774]
[1755560906390,3.02,182.83,182.76,10.29419774]
[1755560908895,3.02,182.83,182.77,5.4686]
[1755560910099,3.02,182.83,182.76,4.82539774]
[1755560910100,3.02,182.83,182.76,10.29419774]
[1755560910601,3.94565275,182.82,182.74,5.4694]
[1755560910802,3.02,182.81,182.74,5.4694]
[1755560912301,3.02,182.81,182.73,4.82539774]
[1755560912490,3.02,182.81,182.69,79.78422256]
[1755560912691,3.02,182.79,182.68,4.86539774]
[1755560913296,3.02,182.79,182.72,0.04]
[1755560914595,3.02,182.79,182.7,5.4707]
[1755560917606,3.02,182.77,182.66,4.86539774]
[1755560917901,4.82539774,182.74,182.57,9.18585975]
[1755560918103,3.02,182.72,182.62,5.5131]
[1755560918294,3.02,182.72,182.62,0.04]
[1755560918607,3.02,182.72,182.64,5.4725]
[1755560918804,3.02,182.72,182.62,0.04]
[1755560919010,3.02,182.72,182.65,5.4722]
[1755560919500,3.02,182.72,182.66,5.4719]
[1755560920806,3.02,182.72,182.67,5.4716]
[1755560921009,3.02,182.71,182.67,5.5116]
[1755560921703,3.02,182.71,182.68,5.5113]
[1755560922703,4.82539774,182.77,182.68,5.4713]
[1755560922899,3.02,182.76,182.69,5.4708]
[1755560923104,3.02,182.76,182.69,5.5108]
[1755560926514,3.02,182.76,182.7,5.4707]
[1755560927103,3.02,182.76,182.69,5.5109]
[1755560927801,3.02,182.76,182.69,0.04]
[1755560929111,3.02,182.76,182.68,5.4713]
[1755560930216,3.02,182.76,182.68,5.5113]
[1755560930606,3.02,182.76,182.69,5.471]
[1755560931515,3.02,182.76,182.71,0.04]
[1755560931711,3.02,182.76,182.7,5.4706]
[1755560931912,3.02,182.76,182.72,0.04]
[1755560932605,4.82539774,182.79,182.7,5.4706]
[1755560932806,3.09,182.75,182.7,5.4706]
[1755560933016,3.09,182.75,182.72,0.05]
[1755560934717,3.09,182.74,182.69,5.521]
[1755560934916,3.09,182.74,182.7,0.05]
[1755560935220,3.09,182.73,182.64,0.05]
[1755560935418,3.09,182.73,182.66,0.05]
[1755560935915,4.82539774,182.79,182.65,4.82539774]
[1755560935916,3.09,182.78,182.69,0.05]
[1755560936221,3.09,182.76,182.69,0.05]
[1755560936517,3.09,182.76,182.69,5.5209]
[1755560939116,4.01456179,182.75,182.69,5.5209]
[1755560939421,3.09,182.76,182.69,5.5209]
[1755560939726,4.01456179,182.75,182.69,5.5209]
[1755560939917,3.09,182.76,182.69,5.5209]
[1755560940115,4.01456179,182.75,182.69,5.5209]
[1755560940321,3.09,182.76,182.69,5.5209]
[1755560940523,4.01583327,182.75,182.69,5.5209]
[1755560940718,3.09,182.76,182.7,5.4707]
[1755560941720,3.09,182.76,182.72,0.05]
[1755560942024,3.09,182.79,182.72,0.05]
[1755560942222,4.01909761,182.78,182.72,0.05]
[1755560942422,3.09,182.79,182.72,0.05]
[1755560942623,4.01925743,182.78,182.72,0.05]
[1755560942827,3.09,182.79,182.72,0.05]
[1755560943122,4.018856,182.78,182.72,0.05]
[1755560943325,7.108856,182.77,182.73,0.05]
[1755560943513,3.09,182.76,182.73,0.05]
[1755560944126,3.09,182.79,182.73,0.05]
[1755560944421,4.02030251,182.78,182.72,5.4701]
[1755560944726,7.11030251,182.77,182.74,0.05]
[1755560945024,3.09,182.76,182.72,5.4701]
[1755560945525,3.09,182.76,182.73,0.05]
[1755560946023,503.32,182.8,182.7,10.29589774]
[1755560946323,3.09,182.76,182.69,0.05]
[1755560946520,4.01982465,182.75,182.69,0.05]
[1755560946726,3.09,182.76,182.69,0.05]
[1755560946918,4.01982465,182.75,182.69,0.05]
[1755560947118,3.09,182.76,182.69,0.05]
[1755560947326,4.01990722,182.75,182.69,0.05]
[1755560947625,3.09,182.76,182.69,0.05]
[1755560947825,4.02010864,182.75,182.69,0.05]
[1755560948025,3.09,182.76,182.69,0.05]
[1755560948226,4.02042622,182.75,182.69,0.05]
[1755560948426,3.09,182.76,182.69,0.05]
[1755560948730,4.02079186,182.75,182.69,5.521]
[1755560948921,3.09,182.76,182.69,5.521]
[1755560949120,4.02122962,182.75,182.69,5.521]
[1755560949322,3.09,182.76,182.69,5.521]
[1755560949624,4.02260341,182.75,182.69,5.521]
[1755560949829,3.09,182.76,182.69,5.521]
[1755560950126,4.02261543,182.75,182.69,5.521]
[1755560950324,3.09,182.76,182.69,5.521]
[1755560950521,4.02326251,182.75,182.69,5.521]
[1755560950826,3.09,182.76,182.69,5.471]
[1755560951018,3.09,182.74,182.69,5.471]
[1755560951214,4.82539774,182.79,182.69,5.471]
[1755560951419,3.09,182.73,182.7,0.05]
[1755560954125,3.09,182.74,182.67,4.82539774]
[1755560954325,4.02776553,182.73,182.65,0.05]
[1755560954521,7.11776553,182.72,182.65,0.05]
[1755560954721,3.09,182.72,182.65,5.522]
[1755560955325,4.02924534,182.71,182.65,5.522]
[1755560955527,3.09,182.72,182.66,5.4719]
[1755560956237,3.09,182.7,182.67,0.05]
[1755560956530,3.09,182.74,182.65,0.05]
[1755560956827,4.03009248,182.73,182.67,4.82539774]
[1755560957133,138.71,182.77,182.71,5.5202]
[1755560957333,4.03212592,182.76,182.71,5.5202]
[1755560957541,4.03212592,182.75,182.66,0.05]
[1755560957729,4.03212592,182.74,182.67,0.05]
[1755560957928,4.03212592,182.73,182.67,0.05]
[1755560958130,4.0312535,182.72,182.67,5.5215]
[1755560958337,7.1212535,182.71,182.67,0.05]
[1755560958637,3.09,182.71,182.67,0.05]
[1755560960633,5.471,182.7,182.67,0.05]
[1755560960935,3.09,182.71,182.67,0.05]
[1755560961136,3.09,182.7,182.67,0.05]
[1755560963344,3.09,182.76,182.66,10.34729774]
[1755560963531,3.09,182.74,182.67,0.05]
[1755560963748,4.0309026,182.73,182.67,0.05]
[1755560964031,4.0309026,182.73,182.69,4.82539774]
[1755560964237,3.09,182.77,182.7,0.05]
[1755560964538,4.03186675,182.76,182.7,0.05]
[1755560964727,7.12186675,182.75,182.71,0.05]
[1755560964927,4.03186675,182.74,182.7,0.05]
[1755560965142,4.03186675,182.73,182.71,5.5203]
[1755560965340,3.09,182.75,182.71,5.5203]
[1755560965531,3.09,182.73,182.69,4.87539774]
[1755560965732,3.09,182.73,182.69,10.34619774]
[1755560965934,4.03196357,182.72,182.69,10.34619774]
[1755560966129,3.09,182.73,182.69,10.34619774]
[1755560966442,4.03231511,182.72,182.69,10.34619774]
[1755560966737,3.09,182.73,182.69,10.34619774]
[1755560966938,4.03241464,182.72,182.69,10.34619774]
[1755560967136,135.58,182.78,182.67,5.4714]
[1755560967331,3.09,182.73,182.67,5.4714]
[1755560967533,3.09,182.71,182.67,5.4714]
[1755560967729,3.09,182.71,182.68,0.05]
[1755560969343,3.09,182.71,182.68,5.5213]
[1755560969952,3.09,182.77,182.69,5.471]
[1755560970243,3.09,182.75,182.69,5.471]
[1755560970440,3.09,182.73,182.69,5.521]
[1755560970639,4.04808846,182.72,182.69,5.521]
[1755560970839,4.04808846,182.71,182.69,5.521]
[1755560971038,3.09,182.73,182.69,5.521]
[1755560971235,4.04814737,182.72,182.69,5.521]
[1755560971445,3.09,182.73,182.69,5.521]
[1755560971446,4.04814737,182.71,182.69,5.521]
[1755560971644,3.09,182.73,182.69,5.521]
[1755560971841,4.04822093,182.72,182.69,5.521]
[1755560972042,4.04822093,182.71,182.69,5.521]
[1755560972246,3.09,182.73,182.69,5.521]
[1755560972448,7.13856063,182.72,182.69,5.521]
[1755560972650,7.13856063,182.71,182.58,10.9486]
[1755560972842,4.04856063,182.7,182.63,0.05]
[1755560973045,4.04856063,182.69,182.63,0.05]
[1755560973240,4.82539774,182.75,182.66,5.5217]
[1755560973442,7.13835284,182.74,182.66,0.05]
[1755560973648,4.04835284,182.73,182.68,5.4711]
[1755560973945,4.04835284,182.73,182.66,0.05]
[1755560973946,4.04835284,182.72,182.66,0.05]
[1755560974149,3.09,182.73,182.69,5.4708]
[1755560974347,4.04836758,182.72,182.69,0.05]
[1755560974547,3.09,182.73,182.69,0.05]
[1755560974748,4.04847015,182.72,182.69,0.05]
[1755560974954,3.09,182.73,182.69,0.05]
[1755560975158,4.04847015,182.72,182.7,5.4707]
[1755560975353,3.09,182.73,182.69,0.05]
[1755560975555,4.04846829,182.72,182.69,0.05]
[1755560975754,3.09,182.73,182.7,5.4705]
[1755560975955,4.04824772,182.72,182.7,5.5205]
[1755560976251,3.09,182.73,182.7,5.5205]
[1755560976558,4.04796136,182.72,182.7,5.5205]
[1755560976752,3.09,182.73,182.7,5.5205]
[1755560976955,4.04846856,182.72,182.7,5.5205]
[1755560977153,3.09,182.73,182.7,5.5205]
[1755560977350,4.04821209,182.72,182.7,0.05]
[1755560977554,3.09,182.73,182.7,0.05]
[1755560977761,4.04831527,182.72,182.7,0.05]
[1755560977964,3.09,182.73,182.7,0.05]
[1755560978163,4.04832592,182.72,182.7,0.05]
[1755560978463,3.09,182.73,182.7,0.05]
[1755560978658,4.04835833,182.72,182.7,5.4707]
[1755560978866,3.09,182.73,182.7,5.4707]
[1755560979065,4.04835833,182.72,182.7,5.4707]
[1755560979266,3.09,182.73,182.7,5.4707]
[1755560979468,4.04839173,182.72,182.7,5.4707]
[1755560979772,3.09,182.73,182.7,5.4707]
[1755560980070,7.13839173,182.72,182.7,5.4707]
[1755560980271,3.09,182.72,182.69,5.4709]
[1755560980667,3.09,182.72,182.7,5.4707]
[1755560981775,3.09,182.72,182.69,5.5209]
[1755560983072,3.09,182.77,182.68,5.4713]
[1755560983267,3.09,182.75,182.68,5.4713]
[1755560983465,3.09,182.73,182.68,5.4713]
[1755560983665,7.13831554,182.72,182.68,5.5113]
[1755560983869,3.09,182.72,182.68,5.5113]
[1755560985467,3.09,182.72,182.68,5.4713]
[1755560985674,3.09,182.72,182.68,5.5113]
[1755560986073,3.09,182.71,182.68,5.5113]
[1755560987777,3.09,182.71,182.69,5.471]
[1755560987980,3.09,182.77,182.7,0.04]
[1755560988176,3.09,182.75,182.7,0.04]
[1755560988475,3.09,182.72,182.69,5.471]
[1755560988677,3.09,182.72,182.68,5.5112]
[1755560988678,4.04980713,182.71,182.68,5.5112]
[1755560989078,4.04980713,182.71,182.69,0.04]
[1755560989778,3.09,182.7,182.67,5.4714]
[1755560990680,3.09,182.7,182.67,5.5114]
[1755560990979,3.09,182.7,182.68,5.4712]
[1755560991280,3.09,182.7,182.68,5.5112]
[1755560991481,3.09,182.7,182.67,5.4715]
[1755560992183,3.09,182.7,182.67,5.5115]
[1755560994287,3.09,182.7,182.67,0.04]
[1755560995082,3.09,182.7,182.67,5.5115]
[1755560996786,3.09,182.7,182.58,10.9485]
[1755560996975,2.97,182.68,182.6,4.86539774]
[1755560997284,2.97,182.66,182.6,4.86539774]
[1755560997873,4.05183845,182.65,182.56,5.77824808]
[1755560998087,4.82539774,182.69,182.58,5.474]
[1755560998088,2.97,182.64,182.58,5.474]
[1755560999280,2.97,182.64,182.57,5.4745]
[1755560999483,2.97,182.65,182.55,0.04]
[1755560999686,2.97,182.63,182.55,0.04]
[1755560999986,4.04519006,182.62,182.55,0.04]
[1755561000184,7.01483854,182.61,182.5,0.95313741]
[1755561000378,4.04444113,182.6,182.48,0.04]
[1755561000580,2.97,182.58,182.48,0.04]
[1755561000981,2.97,182.56,182.49,5.4766]
[1755561001178,2.97,182.56,182.51,0.04]
[1755561001383,2.97,182.62,182.51,0.04]
[1755561001679,2.97,182.6,182.51,0.04]
[1755561001875,2.97,182.58,182.51,0.04]
[1755561002175,2.97,182.58,182.4,0.04]
[1755561002480,2.97,182.58,182.33,382.95391886]
[1755561002481,2.97,182.52,182.43,4.86539774]
[1755561003087,2.97,182.52,182.45,5.4781]
[1755561003288,2.97,182.52,182.4,4.82539774]
[1755561003482,2.97,182.52,182.41,0.04]
[1755561004187,2.97,182.52,182.43,5.4786]
[1755561004489,2.97,182.52,182.41,0.04]
[1755561004689,2.97,182.52,182.44,0.04]
[1755561005079,2.97,182.52,182.4,4.82539774]
[1755561005279,2.97,182.52,182.41,0.04]
[1755561005483,2.97,182.52,182.44,0.04]
[1755561006183,2.97,182.57,182.49,4.82539774]
[1755561006384,2.97,182.57,182.5,0.04]
[1755561006687,135.42,182.66,182.53,0.04]
[1755561006879,2.97,182.65,182.55,4.82539774]
[1755561007084,2.97,182.65,182.55,4.86539774]
[1755561007386,2.97,182.65,182.57,5.4745]
[1755561007590,2.97,182.65,182.55,4.86539774]
[1755561007992,2.97,182.65,182.58,5.4742]
[1755561008292,2.97,182.65,182.58,4.86539774]
[1755561008487,2.97,182.68,182.58,4.86539774]
[1755561009394,2.97,182.68,182.62,0.04]
[1755561009778,2.97,182.68,182.64,5.4724]
[1755561009985,2.97,182.68,182.64,0.04]
[1755561010179,2.97,182.73,182.65,5.4719]
[1755561010385,2.97,182.78,182.69,4.82539774]
[1755561010786,2.97,182.82,182.73,0.04]
[1755561010993,2.97,182.82,182.75,4.82539774]
[1755561011683,135.58,182.84,182.78,4.86539774]
[1755561011891,2.97,182.86,182.78,4.86539774]
[1755561012188,2.97,182.85,182.81,4.82539774]
[1755561012395,2.97,182.85,182.79,5.4677]
[1755561012589,367.94,182.9,182.8,0.04]
[1755561012790,2.97,182.89,182.8,0.04]
[1755561013394,2.97,182.89,182.81,5.4674]
[1755561013895,2.97,182.89,182.8,5.5076]
[1755561014097,2.97,182.89,182.8,0.04]
[1755561015895,2.97,182.89,182.81,5.4671]
[1755561016095,2.97,182.89,182.82,7.59972248]
[1755561016490,3.92185996,182.94,182.83,0.04]
[1755561016699,2.97,182.94,182.85,7.59972248]
[1755561017791,2.97,182.94,182.85,7.63972248]
[1755561018200,2.97,182.94,182.86,5.4658]
[1755561018394,2.97,182.94,182.85,7.63972248]
[1755561019400,135.66,182.95,182.89,7.59972248]
[1755561019899,2.97,182.96,182.89,7.59972248]
[1755561020804,2.97,182.96,182.87,0.04]
[1755561021798,2.97,182.96,182.83,7.63972248]
[1755561022698,2.97,182.96,182.87,7.59972248]
[1755561023002,2.97,182.96,182.88,0.04]
[1755561023194,2.97,182.96,182.87,7.59972248]
[1755561023396,2.97,182.96,182.84,0.04]
[1755561023604,2.97,182.96,182.84,5.5065]
[1755561025804,2.97,182.96,182.84,0.04]
[1755561026403,2.97,182.96,182.81,0.04]
[1755561027308,2.97,182.96,182.81,5.5072]
[1755561027805,2.97,182.96,182.81,0.04]
[1755561028006,3.97191646,182.95,182.81,0.04]
[1755561028205,3.02,182.94,182.81,0.04]
[1755561028504,3.02,182.92,182.81,0.04]
[1755561030106,3.02,182.92,182.79,5.4679]
[1755561031905,3.02,182.92,182.78,0.04]
[1755561032105,3.02,182.9,182.78,0.04]
[1755561032306,3.02,182.88,182.73,0.04]
[1755561032607,3.02,182.88,182.74,5.4694]
[1755561032807,3.02,182.88,182.75,0.04]
[1755561033503,3.02,182.88,182.75,5.5092]
[1755561036813,3.02,182.88,182.76,5.4688]
[1755561037611,3.02,182.88,182.77,0.04]
[1755561038214,3.02,182.88,182.78,5.4682]
[1755561038414,3.02,182.88,182.78,10.29247344]
[1755561038614,3.02,182.88,182.79,0.04]
[1755561040117,3.02,182.88,182.8,5.4675]
[1755561040316,3.02,182.88,182.81,0.04]
[1755561040913,3.02,182.92,182.81,0.04]
[1755561041517,3.02,182.92,182.82,5.467]
[1755561041918,3.02,182.92,182.83,0.04]
[1755561042419,3.02,182.92,182.79,0.04]
[1755561042630,3.02,182.9,182.79,0.04]
[1755561043129,3.02,182.9,182.83,0.04]
[1755561047030,3.02,182.9,182.84,5.4664]
[1755561048731,135.82,182.96,182.86,0.04]
[1755561048930,7.04898156,182.95,182.86,0.04]
[1755561049135,7.04898156,182.94,182.86,0.04]
[1755561049332,4.02898156,182.93,182.86,5.5059]
[1755561050329,4.02898156,182.92,182.86,5.5059]
[1755561050524,4.02898156,182.91,182.87,0.04]
[1755561050722,4.02898156,182.9,182.87,0.04]
[1755561050936,4.02898156,182.89,182.87,0.04]
[1755561051135,3.02,182.93,182.87,0.04]
[1755561051336,4.05492691,182.92,182.87,0.04]
[1755561051536,7.07492691,182.91,182.87,0.04]
[1755561051737,4.05492691,182.9,182.87,0.04]
[1755561051938,4.05492691,182.89,182.87,0.04]
[1755561052138,4.05492691,182.88,182.87,0.04]
[1755561053132,4.05492691,182.88,182.85,5.466]
[1755561053441,4.05492691,182.87,182.86,0.04]
[1755561054234,4.05492691,182.87,182.86,5.5059]
[1755561055129,4.05492691,182.87,182.86,0.04]
[1755561055735,4.05492691,182.87,182.85,5.4661]
[1755561055939,147.90157099,182.96,182.82,0.04]
[1755561055940,7.18492691,182.86,182.82,0.04]
[1755561056243,4.05492691,182.85,182.81,0.04]
[1755561056440,4.08279052,182.84,182.81,0.04]
[1755561056744,3.13,182.89,182.82,0.04]
[1755561056938,7.11967777,182.88,182.82,0.04]
[1755561057238,3.13,182.86,182.82,0.04]
[1755561057440,7.11967777,182.85,182.81,5.4673]
[1755561057740,7.11967777,182.85,182.8,7.59994224]
[1755561057741,3.98967777,182.84,182.8,7.59994224]
[1755561057946,3.98967777,182.83,182.82,0.04]
[1755561059130,3.98967777,182.83,182.82,5.5068]
[1755561059330,3.98967777,182.83,182.82,5.4668]
[1755561060343,3.13,182.88,182.85,5.466]
[1755561061435,9.18022045,182.9,182.84,5.4664]
[1755561061637,4.26809578,182.89,182.82,4.86150499]
[1755561061838,4.26809578,182.89,182.85,5.4662]
[1755561061839,3.13,182.89,182.85,5.4662]
[1755561062035,3.13,182.88,182.85,5.4662]
[1755561062238,6.05022045,182.92,182.85,5.4662]
[1755561062441,3.13,182.88,182.85,5.4662]
[1755561063041,6.05022045,182.92,182.85,5.4662]
[1755561063244,3.13,182.9,182.84,5.4664]
[1755561063741,3.13,182.9,182.82,4.86150499]
[1755561064048,3.13,182.91,182.85,5.466]
[1755561064437,3.13,182.91,182.84,5.4664]
[1755561065245,3.13,182.91,182.85,5.4662]
[1755561065834,3.13,182.91,182.83,0.04]
[1755561066138,3.13,182.91,182.87,5.5054]
[1755561067146,3.13,182.95,182.88,10.28670499]
[1755561067443,3.13,182.95,182.88,4.82150499]
[1755561068344,3.13,182.95,182.89,5.465]
[1755561068642,3.13,182.95,182.88,4.82150499]
[1755561068840,3.13,182.95,182.89,5.4648]
[1755561069040,3.13,182.95,182.88,4.82150499]
[1755561069345,135.82,182.96,182.9,5.4646]
[1755561069544,3.13,182.94,182.9,5.4646]
[1755561069947,3.13,182.95,182.9,5.4646]
[1755561070140,135.82,182.96,182.88,4.82150499]
[1755561070347,135.82,182.96,182.88,4.86150499]
[1755561071352,135.82,182.96,182.91,5.4644]
[1755561071545,3.13,182.95,182.91,5.4644]
[1755561071749,135.82,182.96,182.88,4.82150499]
[1755561072046,138.95,182.96,182.93,0.04]
[1755561072645,138.95,182.96,182.93,5.5037]
[1755561073546,138.95,182.96,182.93,0.04]
[1755561073748,3.13,182.95,182.92,5.4641]
[1755561073955,3.13,182.95,182.92,5.5041]
[1755561074247,3.13,182.95,182.93,5.4638]
[1755561074454,3.13,182.94,182.91,4.82150499]
[1755561074654,367.82,183.0,182.92,5.464]
[1755561074957,3.13,182.96,182.92,0.04]
[1755561075254,3.13,182.99,182.92,0.04]
[1755561075656,3.13,182.97,182.88,4.82150499]
[1755561075957,3.13,182.95,182.86,4.86150499]
[1755561076343,3.13,182.95,182.88,5.4653]
[1755561077358,3.13,182.95,182.89,4.82150499]
[1755561077961,3.13,182.94,182.9,5.4646]
[1755561078148,3.13,182.99,182.89,4.82150499]
[1755561078349,3.13,182.97,182.89,4.82150499]
[1755561078548,3.13,182.95,182.89,4.82150499]
[1755561079258,3.13,182.95,182.89,10.28660499]
[1755561080252,3.94454976,182.94,182.89,10.28660499]
[1755561080447,3.13,182.93,182.89,10.28660499]
[1755561082659,3.13,182.93,182.89,10.31660499]
[1755561084961,3.13,182.93,182.89,10.28660499]
[1755561085159,3.13,182.93,182.89,10.31660499]
[1755561086266,3.13,182.93,182.9,5.4948]
[1755561087468,5.77290954,183.0,182.91,5.4644]
[1755561087664,3.94735407,182.99,182.91,5.4944]
[1755561087866,2.9,182.94,182.91,5.4944]
[1755561088070,2.9,182.99,182.89,4.82150499]
[1755561088262,2.9,182.97,182.89,4.82150499]
[1755561088461,2.9,182.95,182.89,4.82150499]
[1755561088663,3.94702202,182.94,182.89,4.82150499]
[1755561088868,2.9,182.93,182.89,4.85150499]
[1755561089168,2.9,182.93,182.89,10.31640499]
[1755561089465,2.9,182.93,182.89,4.82150499]
[1755561089671,2.9,182.95,182.91,5.4943]
[1755561090065,2.9,182.95,182.91,0.03]
[1755561091070,2.9,182.99,182.92,5.4642]
[1755561091262,3.96114906,182.98,182.92,5.4642]
[1755561091468,2.9,182.95,182.92,5.4642]
[1755561092166,2.9,182.95,182.92,5.4942]
[1755561093871,2.9,182.95,182.92,0.03]
[1755561094874,2.9,182.95,182.92,5.494]
[1755561095074,2.9,182.95,182.92,0.03]
[1755561095275,2.9,182.99,182.93,0.03]
[1755561095478,6.86077458,182.98,182.94,5.4934]
[1755561095671,2.9,182.98,182.94,5.4934]
[1755561096175,2.9,182.97,182.94,5.4934]
[1755561096975,135.3,183.01,182.91,4.82150499]
[1755561097278,2.9,182.98,182.89,4.82150499]
[1755561097575,2.9,182.96,182.9,5.4647]
[1755561097774,3.9604977,182.95,182.9,5.4947]
[1755561097975,2.9,182.98,182.9,0.03]
[1755561098172,3.96029824,182.97,182.9,0.03]
[1755561098381,3.96029824,182.96,182.9,0.03]
[1755561098573,2.9,182.98,182.9,0.03]
[1755561098780,2.9,182.96,182.9,0.03]
[1755561099085,136.25136554,183.01,182.9,0.03]
[1755561099086,2.9,182.94,182.9,0.03]
[1755561099284,2.9,182.94,182.9,5.4947]
[1755561099687,2.9,182.93,182.9,5.4947]
[1755561101088,4.82150499,182.99,182.88,4.82150499]
[1755561101385,2.9,182.97,182.88,4.82150499]
[1755561101581,2.9,182.95,182.88,10.28690499]
[1755561101780,2.9,182.93,182.88,10.28690499]
[1755561102087,2.9,182.91,182.88,10.31690499]
[1755561102277,4.82150499,182.99,182.88,5.4654]
[1755561102582,8.23291774,182.98,182.86,5.4958]
[1755561102887,2.9,182.89,182.86,5.4958]
[1755561103090,2.9,182.95,182.84,5.4663]
[1755561103285,2.9,182.92,182.82,4.85150499]
[1755561103480,2.9,182.9,182.79,4.82150499]
[1755561103791,2.9,182.88,182.79,4.85150499]
[1755561104088,3.96110869,182.87,182.79,4.85150499]
[1755561104277,2.9,182.88,182.81,0.03]
[1755561104878,2.9,182.91,182.83,0.03]
[1755561105181,3.96029588,182.9,182.83,0.03]
[1755561105389,3.96029588,182.89,182.83,0.03]
[1755561105582,2.9,182.91,182.83,0.03]
[1755561105792,3.96006612,182.9,182.83,0.03]
[1755561105991,2.9,182.91,182.83,0.03]
[1755561106290,135.26,182.92,182.87,0.03]
[1755561106487,135.26,182.92,182.89,0.03]
[1755561106887,2.9,182.94,182.89,0.03]
[1755561107086,6.86232465,182.93,182.89,5.495]
[1755561107292,2.9,182.93,182.89,5.495]
[1755561108193,2.9,182.97,182.9,5.4648]
[1755561108389,3.9641184,182.96,182.9,5.4648]
[1755561108603,2.9,182.94,182.9,5.4948]
[1755561109294,2.9,182.97,182.9,5.4948]
[1755561109486,3.96454923,182.96,182.9,5.4948]
[1755561109792,3.96454923,182.95,182.92,0.03]
[1755561109987,135.26,182.98,182.93,0.03]
[1755561110191,2.9,182.96,182.93,0.03]
[1755561110391,3.96504877,182.95,182.93,0.03]
[1755561110693,3.96504877,182.95,182.91,4.82150499]
[1755561110893,2.9,182.97,182.92,0.03]
[1755561111098,3.96602219,182.96,182.92,0.03]
[1755561111301,2.9,182.96,182.92,0.03]
[1755561111786,2.9,182.96,182.93,5.4638]
[1755561111990,2.9,182.96,182.92,0.03]
[1755561112702,2.9,182.96,182.92,5.494]
[1755561112999,2.9,182.96,182.92,0.03]
[1755561113401,2.9,182.96,182.93,5.4639]
[1755561114102,2.9,182.96,182.93,5.5039]
[1755561114703,2.9,182.96,182.93,0.04]
[1755561116703,2.9,182.96,182.93,5.5039]
[1755561119203,135.26,182.98,182.94,0.04]
[1755561119399,3.11,182.97,182.93,5.5039]
[1755561119598,3.11,182.96,182.93,5.5039]
[1755561119808,3.11,182.96,182.93,0.04]
[1755561120298,3.11,182.95,182.93,0.04]
[1755561120506,3.11,182.95,182.92,5.4641]
[1755561120703,138.37,182.98,182.93,5.4639]
[1755561120904,7.11464448,182.97,182.93,5.5039]
[1755561121111,3.11,182.97,182.93,5.5039]
[1755561122510,135.26,182.98,182.95,0.04]
[1755561122699,138.37,182.98,182.95,0.04]